bitfinex/quotes_ETHUSD_20250215
["timestamp","ask_amount","ask_price","bid_price","bid_amount"]
[1739640381050,4.98923721,2686.0,2685.8,3.72328]
[1739640381252,4.98923721,2686.0,2685.7,7.44667]
[1739640381751,4.98923721,2686.0,2685.7,3.72333]
[1739640382555,9.66394979,2686.0,2685.3,3.72393]
[1739640382717,3.72353,2685.7,2685.1,3.72413]
[1739640382925,3.72329,2685.8,2685.2,3.72401]
[1739640383125,4.80179728,2685.8,2685.2,3.72401]
[1739640383341,8.52515728,2685.8,2685.2,3.72401]
[1739640383739,4.80179728,2685.8,2685.3,3.72395]
[1739640384118,4.98923721,2685.9,2685.5,3.7237]
[1739640385029,4.98923721,2685.9,2685.6,3.72352]
[1739640385363,4.98923721,2685.9,2685.7,3.72335]
[1739640386281,4.98923721,2685.9,2685.8,3.72328]
[1739640386626,4.98923721,2685.9,2685.7,0.7883]
[1739640386828,4.98923721,2685.9,2685.5,3.7236]
[1739640387027,4.98923721,2685.9,2685.7,3.72342]
[1739640387548,4.98923721,2685.9,2685.7,7.44676]
[1739640387958,4.98923721,2685.9,2685.7,3.72334]
[1739640391879,4.98923721,2685.9,2685.5,3.7236]
[1739640392085,4.98923721,2685.9,2685.6,3.72356]
[1739640392249,4.98923721,2685.9,2685.7,3.72338]
[1739640392449,4.98923721,2685.9,2685.6,3.72353]
[1739640393057,4.98923721,2685.9,2685.7,3.72341]
[1739640393255,4.98923721,2685.9,2685.7,7.44676]
[1739640393587,4.98923721,2685.9,2685.8,3.72328]
[1739640400495,4.98923721,2685.9,2685.7,4.52085]
[1739640401686,4.98923721,2685.9,2685.6,0.824463]
[1739640401864,4.98923721,2685.9,2685.7,3.72334]
[1739640405389,4.98923721,2685.9,2685.5,4.5211]
[1739640405687,4.98923721,2685.9,2685.5,7.44722]
[1739640405688,0.04654295,2685.8,2685.5,7.44722]
[1739640405992,0.04654295,2685.8,2685.1,3.72416]
[1739640406197,8.71237721,2685.9,2685.1,3.72416]
[1739640406401,0.87123772,2685.8,2685.1,3.72416]
[1739640406761,3.72339,2685.8,2685.3,3.72393]
[1739640407382,3.76993861,2685.8,2685.3,3.72393]
[1739640407783,3.76993861,2685.8,2685.1,3.72416]
[1739640407784,4.98923721,2685.7,2685.1,3.72416]
[1739640407982,4.98923721,2685.6,2685.1,3.72416]
[1739640408288,4.98923721,2685.6,2685.0,0.8065]
[1739640408594,4.98923721,2685.6,2685.2,3.72404]
[1739640408798,4.98923721,2685.6,2685.3,3.72395]
[1739640409096,4.98923721,2685.6,2685.4,3.72373]
[1739640409304,4.98923721,2685.6,2685.5,3.7237]
[1739640414007,4.98923721,2685.6,2684.9,9.1625]
[1739640414233,4.98923721,2685.6,2685.4,3.72376]
[1739640414511,4.98923721,2685.6,2685.5,3.7237]
[1739640415994,4.98923721,2685.6,2685.4,3.72376]
[1739640417596,4.98923721,2685.6,2685.4,7.44752]
[1739640417798,4.98923721,2685.6,2685.4,3.72376]
[1739640417997,4.98923721,2685.6,2685.3,3.72395]
[1739640418392,5.03578501,2685.6,2685.3,3.72395]
[1739640418588,4.98923721,2685.6,2685.3,3.72395]
[1739640418915,4.98923721,2685.6,2685.3,3.72389]
[1739640420522,4.98923721,2685.6,2685.5,3.7237]
[1739640422997,4.98923721,2685.6,2685.3,4.176889]
[1739640423197,4.98923721,2685.6,2685.4,3.72374]
[1739640424528,4.98923721,2685.6,2685.3,3.72385]
[1739640424891,4.98923721,2685.6,2685.3,7.44775]
[1739640425427,4.98923721,2685.6,2685.3,3.72385]
[1739640425616,4.98923721,2685.6,2685.3,7.4477]
[1739640425917,4.98923721,2685.6,2685.4,3.72383]
[1739640426223,4.98923721,2685.6,2685.5,3.7237]
[1739640427119,4.98923721,2685.6,2685.3,3.72385]
[1739640428638,4.98923721,2685.6,2685.2,3.72411]
[1739640431241,4.98923721,2685.6,2685.3,3.72396]
[1739640431441,4.98923721,2685.6,2685.3,4.49926]
[1739640431740,4.98923721,2685.5,2685.4,3.72376]
[1739640433027,4.98923721,2685.5,2685.3,3.72396]
[1739640433212,4.98923721,2685.5,2685.1,3.72411]
[1739640433395,4.98923721,2685.5,2685.2,3.72406]
[1739640435125,4.98923721,2685.5,2685.2,3.72411]
[1739640436344,4.98923721,2685.5,2685.4,3.72384]
[1739640437544,4.98923721,2685.5,2685.4,4.468621]
[1739640441514,4.98923721,2685.9,2685.8,3.72328]
[1739640441699,4.98923721,2685.9,2685.6,3.72349]
[1739640441904,4.98923721,2685.9,2685.6,7.44697]
[1739640442128,4.98923721,2685.9,2685.7,3.72338]
[1739640442834,5.49281489,2685.9,2685.4,3.72375]
[1739640443014,5.53936034,2685.9,2685.4,3.72375]
[1739640443215,9.21602489,2685.9,2685.3,3.72393]
[1739640445346,0.73545893,2685.8,2685.3,3.72393]
[1739640446143,0.73545893,2685.8,2685.4,3.72383]
[1739640446311,4.98923721,2685.7,2685.4,3.72383]
[1739640447294,4.98923721,2685.7,2685.5,3.72362]
[1739640447936,4.98923721,2685.7,2685.5,3.72361]
[1739640449552,4.98923721,2685.7,2685.6,3.72356]
[1739640457135,4.98923721,2685.7,2685.5,3.72361]
[1739640457734,4.98923721,2685.7,2685.5,7.44723]
[1739640457946,4.98923721,2685.7,2685.5,3.72361]
[1739640459584,4.98923721,2685.7,2685.5,7.44724]
[1739640459782,4.98923721,2685.7,2685.4,3.72382]
[1739640460504,4.98923721,2685.7,2685.3,3.72384]
[1739640460981,9.63047018,2685.7,2685.2,3.72409]
[1739640461164,4.98923721,2685.6,2685.2,3.72409]
[1739640462183,0.0465493,2685.5,2685.2,3.72409]
[1739640462406,4.98923721,2685.6,2685.2,3.72409]
[1739640462746,4.98923721,2685.6,2685.1,3.72422]
[1739640462952,4.98923721,2685.6,2685.3,3.72396]
[1739640463791,0.04654926,2685.5,2685.1,3.72422]
[1739640463996,4.98923721,2685.6,2685.2,3.72411]
[1739640464295,4.98923721,2685.5,2685.2,3.72411]
[1739640465483,0.04655065,2685.4,2685.1,3.72422]
[1739640465695,4.98923721,2685.3,2685.1,3.72422]
[1739640468367,7.22423721,2685.3,2685.1,3.72422]
[1739640468569,4.98923721,2685.3,2685.0,3.72431]
[1739640469473,4.98923721,2685.3,2685.1,3.72422]
[1739640470257,4.98923721,2685.2,2685.1,3.72422]
[1739640475201,4.98923721,2685.2,2685.1,4.49642]
[1739640475502,4.98923721,2685.2,2685.1,5.3185]
[1739640481992,4.98923721,2685.8,2685.7,3.72342]
[1739640483019,4.98923721,2685.8,2685.7,4.50012]
[1739640490216,4.98923721,2686.5,2686.3,3.72253]
[1739640490419,4.98923721,2686.5,2686.4,3.72245]
[1739640490730,4.98923721,2686.5,2686.4,4.544618]
[1739640492021,4.98923721,2686.5,2686.4,5.321318]
[1739640493268,4.98923721,2687.2,2686.4,1.598868]
[1739640493478,4.98923721,2687.1,2686.8,3.7218]
[1739640493848,4.98923721,2687.1,2686.9,3.72172]
[1739640494041,4.98923721,2687.1,2687.0,3.72162]
[1739640494246,4.98923721,2687.1,2687.0,4.543628]
[1739640494976,4.98923721,2687.1,2687.0,3.72162]
[1739640497645,4.98923721,2687.1,2686.9,3.72176]
[1739640497938,4.98923721,2687.1,2686.9,3.72166]
[1739640498186,4.98923721,2687.1,2686.9,3.72165]
[1739640498673,4.98923721,2687.1,2686.9,7.44332]
[1739640498876,4.98923721,2687.1,2687.0,0.822002]
[1739640499469,4.98923721,2687.1,2686.7,3.72198]
[1739640499853,4.98923721,2687.1,2686.6,3.72213]
[1739640500381,8.71075721,2687.1,2686.5,3.72228]
[1739640500679,8.75749115,2687.0,2686.4,3.72239]
[1739640500886,3.72215,2686.7,2686.2,8.354]
[1739640501044,8.71148721,2686.6,2686.2,8.354]
[1739640501246,3.72259,2686.3,2686.2,8.354]
[1739640501475,8.71182721,2686.3,2686.2,8.354]
[1739640501781,4.98923721,2686.3,2685.4,0.8222]
[1739640501946,3.72288,2686.1,2685.4,4.54602]
[1739640502567,12.43510721,2686.1,2685.4,3.72382]
[1739640503385,8.71211721,2686.1,2685.4,3.72382]
[1739640504278,0.04654209,2686.0,2685.4,3.72382]
[1739640504578,3.72321,2685.9,2685.3,3.72386]
[1739640504796,3.76986393,2685.8,2685.1,4.54623]
[1739640505195,7.44646,2685.9,2685.2,4.260833]
[1739640505395,7.44648,2685.9,2685.2,3.72399]
[1739640505551,0.04654539,2685.8,2685.2,3.72399]
[1739640505864,3.72321,2685.9,2685.3,3.72396]
[1739640506256,8.71217721,2686.1,2685.4,3.72381]
[1739640506491,8.71217721,2686.1,2685.5,3.72369]
[1739640506786,9.95566093,2686.1,2685.5,3.72369]
[1739640507423,6.23272093,2686.1,2685.5,3.7236]
[1739640507588,6.23272093,2686.1,2685.6,3.72348]
[1739640507890,9.95564093,2686.1,2685.5,3.7236]
[1739640508666,9.95564093,2686.1,2685.5,7.44722]
[1739640508852,4.98923721,2686.0,2685.5,7.44718]
[1739640509158,4.98923721,2686.0,2685.5,3.72358]
[1739640509782,9.18857786,2686.0,2685.5,3.72358]
[1739640509990,5.41901578,2686.0,2685.6,3.72355]
[1739640510288,5.46555786,2686.0,2685.5,3.72358]
[1739640510471,5.41901578,2686.0,2685.5,3.72358]
[1739640510672,5.46555847,2686.0,2685.5,3.72358]
[1739640510986,0.0465428,2685.9,2685.5,3.72358]
[1739640511400,5.41901578,2686.0,2685.5,3.72358]
[1739640511702,0.96073627,2685.9,2685.5,3.72358]
[1739640511901,0.91419358,2685.9,2685.5,3.72358]
[1739640512286,5.41901578,2686.0,2685.5,7.44717]
[1739640512695,5.41901578,2686.0,2685.5,3.72358]
[1739640512870,9.14201578,2686.0,2685.5,3.72358]
[1739640513071,0.04654278,2685.9,2685.5,3.72358]
[1739640513873,9.14201578,2686.0,2685.5,3.72358]
[1739640514207,9.14201578,2686.0,2685.4,3.72381]
[1739640514208,5.00967358,2685.9,2685.4,3.72381]
[1739640514708,4.98923721,2685.8,2685.4,3.72381]
[1739640515074,4.98923721,2685.8,2685.3,3.72393]
[1739640515794,4.98923721,2685.8,2685.3,3.7239]
[1739640515967,4.98923721,2685.8,2685.3,7.44779]
[1739640516172,4.98923721,2685.8,2685.3,3.72389]
[1739640516572,8.71251721,2685.8,2685.3,3.72389]
[1739640517003,4.98923721,2685.8,2685.3,7.44779]
[1739640517509,4.98923721,2685.8,2685.3,3.72388]
[1739640517805,4.98923721,2685.8,2685.5,3.72369]
[1739640521279,4.98923721,2685.8,2685.5,3.72362]
[1739640522913,4.98923721,2685.8,2685.4,3.72379]
[1739640523576,4.98923721,2685.8,2685.3,3.72393]
[1739640523782,5.03578257,2685.8,2685.4,3.72382]
[1739640524207,4.98923721,2685.8,2685.4,3.72382]
[1739640524412,4.98923721,2685.8,2685.5,3.72366]
[1739640524579,0.04654536,2685.7,2685.4,3.72382]
[1739640524781,4.98923721,2685.6,2685.4,3.72382]
[1739640525195,4.98923721,2685.6,2685.5,3.7237]
[1739640526613,4.98923721,2685.6,2685.3,3.72388]
[1739640527506,4.98923721,2685.6,2685.4,3.72381]
[1739640528211,4.98923721,2685.6,2685.3,3.72388]
[1739640528785,4.98923721,2685.6,2685.2,3.7241]
[1739640528985,4.98923721,2685.6,2685.3,3.72388]
[1739640529211,4.98923721,2685.6,2685.5,4.5562]
[1739640535399,4.98923721,2685.6,2685.5,7.5562]
[1739640535717,8.71140721,2686.6,2686.0,3.72287]
[1739640535920,4.98923721,2686.5,2686.0,3.72287]
[1739640536099,4.98923721,2686.5,2686.1,3.72278]
[1739640536300,4.98923721,2686.4,2686.2,3.72272]
[1739640537203,4.98923721,2686.4,2686.2,3.72265]
[1739640538095,4.98923721,2686.4,2686.3,3.72259]
[1739640538504,4.98923721,2686.4,2686.2,4.178165]
[1739640538505,4.98923721,2686.8,2686.6,3.72205]
[1739640539150,4.98923721,2686.8,2686.7,3.72203]
[1739640541229,4.98923721,2686.8,2686.6,3.72205]
[1739640542107,4.98923721,2686.8,2686.6,7.44414]
[1739640542618,4.98923721,2686.8,2686.6,3.72205]
[1739640543409,4.98923721,2686.8,2686.6,7.44414]
[1739640543614,4.98923721,2686.8,2686.7,3.72203]
[1739640546231,4.98923721,2686.8,2686.6,4.549714]
[1739640547002,4.98923721,2686.8,2686.7,3.72203]
[1739640547529,4.98923721,2686.8,2686.6,4.549714]
[1739640547833,4.98923721,2686.8,2686.6,8.271804]
[1739640548000,4.98923721,2686.8,2686.7,3.72203]
[1739640548909,4.98923721,2686.8,2686.7,4.5492044]
[1739640553014,4.98923721,2686.8,2686.7,5.3109044]
[1739640559045,4.98923721,2686.8,2686.7,4.5492044]
[1739640559243,4.98923721,2686.8,2686.7,3.72203]
[1739640563023,4.98923721,2686.8,2686.5,3.72224]
[1739640564315,0.0465256,2686.7,2686.3,3.72246]
[1739640564652,8.71148721,2686.6,2686.0,3.72289]
[1739640564816,3.72241,2686.5,2685.9,12.07812]
[1739640565020,3.76894235,2686.5,2685.9,12.07812]
[1739640565714,3.72245,2686.4,2685.9,12.07812]
[1739640565953,8.71185721,2686.3,2685.9,8.355]
[1739640566955,3.72292,2686.1,2685.9,8.355]
[1739640567123,4.98923721,2686.0,2685.9,8.355]
[1739640569350,8.71223721,2686.0,2685.9,8.355]
[1739640570024,8.71223721,2686.0,2685.4,3.72373]
[1739640570222,8.71223721,2686.0,2685.4,7.44748]
[1739640570528,3.72314,2685.9,2685.3,0.7715]
[1739640570733,4.98923721,2685.8,2685.3,3.72396]
[1739640570935,4.98923721,2685.8,2685.3,4.545477]
[1739640571233,5.0357819,2685.8,2685.4,3.72379]
[1739640571439,5.03578117,2685.8,2685.4,3.72379]
[1739640572254,4.98923721,2685.8,2685.4,3.72379]
[1739640572471,4.98923721,2685.8,2685.5,3.72369]
[1739640574366,4.98923721,2685.8,2685.6,3.72343]
[1739640574661,4.98923721,2685.8,2685.7,3.72342]
[1739640575448,4.98923721,2685.8,2685.6,3.72343]
[1739640575628,4.98923721,2685.8,2685.7,3.72342]
[1739640586074,8.71148721,2686.6,2686.1,3.72286]
[1739640586269,6.23259793,2686.5,2686.1,3.72286]
[1739640586470,4.98923721,2686.4,2686.2,3.72272]
[1739640586853,4.98923721,2686.4,2686.1,3.72286]
[1739640587252,4.98923721,2686.4,2686.1,7.44565]
[1739640587437,4.98923721,2686.4,2686.1,3.72279]
[1739640590844,4.98923721,2686.4,2686.3,3.72259]
[1739640592358,4.98923721,2686.4,2686.3,4.54689]
[1739640593141,4.98923721,2686.9,2686.7,3.72201]
[1739640593345,4.98923721,2686.9,2686.8,3.72189]
[1739640593754,4.98923721,2687.2,2687.0,3.72162]
[1739640594276,4.98923721,2687.2,2687.0,3.72154]
[1739640594458,4.98923721,2687.2,2687.0,3.72153]
[1739640596284,4.98923721,2687.2,2686.8,3.72181]
[1739640596460,4.98923721,2687.2,2686.9,4.093811]
[1739640596861,4.98923721,2687.2,2686.9,3.72163]
[1739640598283,4.98923721,2687.2,2687.0,3.72154]
[1739640598700,4.98923721,2687.2,2687.0,3.72159]
[1739640599793,4.98923721,2687.2,2686.9,7.4433]
[1739640599957,4.98923721,2687.2,2686.9,3.72163]
[1739640600467,4.98923721,2687.2,2686.7,3.72192]
[1739640600663,4.98923721,2687.2,2686.7,4.53081957]
[1739640601185,4.98923721,2687.2,2686.8,3.72182]
[1739640601553,4.98923721,2687.2,2686.9,3.72169]
[1739640601760,4.98923721,2687.2,2687.0,3.72153]
[1739640602788,4.98923721,2687.2,2686.9,3.72169]
[1739640602991,4.98923721,2687.2,2687.0,3.72161]
[1739640603355,4.98923721,2687.2,2686.9,7.44338]
[1739640603553,4.98923721,2687.2,2686.9,3.72169]
[1739640604174,4.98923721,2687.2,2686.9,7.44338]
[1739640604375,4.98923721,2687.2,2687.0,3.72159]
[1739640604674,4.98923721,2687.2,2686.9,3.72169]
[1739640604874,4.98923721,2687.2,2686.7,3.7219]
[1739640605082,3.72157,2687.1,2686.5,3.72218]
[1739640605472,3.72157,2687.1,2686.6,3.72208]
[1739640605951,0.04652337,2687.0,2686.6,3.72208]
[1739640606156,3.72157,2687.1,2686.7,3.72203]
[1739640606655,3.72157,2687.1,2686.6,3.72208]
[1739640606967,3.72157,2687.1,2686.4,3.72236]
[1739640606968,3.76822337,2687.0,2686.4,3.72236]
[1739640607162,3.72186,2686.9,2686.3,3.72254]
[1739640607591,3.72186,2686.9,2686.2,4.52194]
[1739640607790,3.72186,2686.9,2686.4,3.72243]
[1739640608488,3.72183,2686.9,2686.4,3.72243]
[1739640608671,4.57465447,2686.9,2686.4,3.72243]
[1739640609485,3.72205,2686.7,2686.2,3.72261]
[1739640609879,4.98923721,2686.6,2686.2,3.72261]
[1739640610891,5.03576749,2686.6,2686.2,3.72261]
[1739640611062,8.75794749,2686.6,2686.1,12.07585]
[1739640611262,9.8890126,2686.5,2685.8,3.72319]
[1739640611472,8.71163721,2686.5,2685.8,3.72319]
[1739640612089,4.98923721,2686.5,2685.6,0.7993]
[1739640612390,4.98923721,2686.5,2685.6,4.52276]
[1739640612391,3.7228,2686.2,2685.6,4.52276]
[1739640612759,3.7228,2686.2,2685.6,8.24624]
[1739640613390,3.72309,2686.0,2685.4,3.72378]
[1739640613553,5.0357788,2685.9,2685.3,8.353]
[1739640613757,8.71240721,2685.9,2685.3,12.07697]
[1739640614391,3.72328,2685.8,2685.3,12.07697]
[1739640614689,5.7277079,2685.7,2685.3,8.353]
[1739640614902,3.7236,2685.6,2685.3,8.353]
[1739640615261,5.7277079,2685.7,2685.3,8.353]
[1739640615761,5.77425456,2685.7,2685.3,8.353]
[1739640615961,9.49767456,2685.7,2685.3,8.353]
[1739640616198,9.4511279,2685.7,2685.3,8.353]
[1739640616362,3.72358,2685.6,2685.3,8.353]
[1739640617265,4.98923721,2685.7,2685.3,8.353]
[1739640617899,0.04654813,2685.6,2685.3,8.353]
[1739640618093,3.77014813,2685.6,2685.3,8.353]
[1739640618296,3.72383,2685.5,2685.3,8.353]
[1739640618698,4.98923721,2685.4,2685.3,8.353]
[1739640620397,8.71307721,2685.4,2685.3,8.353]
[1739640620600,9.7960806,2685.4,2685.3,8.353]
[1739640620799,3.72421,2685.2,2684.7,3.72479]
[1739640623087,5.86056093,2685.1,2684.7,3.72472]
[1739640623900,5.90711769,2685.1,2684.7,3.72472]
[1739640624097,5.90711769,2685.1,2684.5,4.52638]
[1739640624407,5.90711769,2685.1,2684.7,3.72476]
[1739640624571,5.03579397,2685.1,2684.7,3.72476]
[1739640624997,3.72449,2685.0,2684.2,4.52679]
[1739640625166,3.77118163,2684.9,2684.4,3.7252]
[1739640625366,3.72474,2684.8,2684.2,3.72539]
[1739640625589,0.04656241,2684.8,2684.4,3.72519]
[1739640625798,3.77135241,2684.8,2684.2,3.72539]
[1739640625977,3.72497,2684.6,2684.0,0.8014]
[1739640626184,4.98923721,2684.5,2683.9,8.356]
[1739640626402,4.98923721,2684.5,2684.0,3.72565]
[1739640626697,5.90722771,2684.5,2683.9,12.08191]
[1739640626885,5.86065793,2684.5,2683.9,12.08191]
[1739640627092,3.72531,2684.4,2683.9,12.08191]
[1739640627295,4.98923721,2684.5,2683.9,8.356]
[1739640627598,4.98923721,2684.5,2684.2,3.7254]
[1739640628480,4.98923721,2684.5,2684.0,3.72569]
[1739640628684,5.8653197,2684.5,2684.1,3.72556]
[1739640628887,5.8653197,2684.5,2684.0,3.72569]
[1739640629189,5.8653197,2684.5,2684.0,7.45137]
[1739640629498,4.98923721,2684.5,2684.0,3.72568]
[1739640629679,4.98923721,2684.5,2684.2,3.72547]
[1739640630579,4.98923721,2684.5,2684.0,3.72568]
[1739640630778,4.98923721,2684.5,2684.1,3.72552]
[1739640631505,4.98923721,2684.5,2684.3,3.72533]
[1739640631796,4.98923721,2684.5,2684.1,3.72557]
[1739640632006,4.98923721,2684.5,2684.2,3.72549]
[1739640633001,4.98923721,2684.5,2683.9,8.356]
[1739640633303,4.98923721,2684.5,2684.0,3.72567]
[1739640633304,5.86064293,2684.5,2684.0,3.72567]
[1739640634066,5.86064293,2684.5,2684.0,3.72577]
[1739640634294,5.86064293,2684.5,2684.1,3.72564]
[1739640634903,9.58572293,2684.5,2683.9,12.0818]
[1739640635172,3.72588,2684.0,2683.4,3.72651]
[1739640635375,3.72603,2683.9,2683.3,3.72674]
[1739640635576,0.04657932,2683.8,2683.3,3.72674]
[1739640635905,3.77267932,2683.8,2683.2,3.72681]
[1739640636110,3.77267932,2683.8,2683.2,7.45359]
[1739640636319,7.90422539,2683.8,2683.2,3.72678]
[1739640636485,3.72622,2683.7,2683.2,3.72678]
[1739640636680,3.72635,2683.6,2683.0,3.7271]
[1739640636881,3.72635,2683.6,2682.8,3.72738]
[1739640636882,3.72643,2683.6,2682.8,3.72738]
[1739640637124,4.759058,2683.8,2682.5,9.1181]
[1739640637296,0.5309058,2683.7,2683.1,3.72691]
[1739640637598,0.5309058,2683.7,2683.1,3.72695]
[1739640637814,4.2571358,2683.7,2683.1,3.72695]
[1739640638034,6.72591,2684.0,2683.1,3.72695]
[1739640638314,3.0,2684.0,2683.3,3.72667]
[1739640638616,3.99227,2684.4,2683.8,3.72605]
[1739640638782,4.98923721,2684.5,2684.0,3.72572]
[1739640639136,4.98923721,2684.5,2683.8,3.72605]
[1739640639137,3.72436,2685.1,2684.3,3.72536]
[1739640639499,3.72436,2685.1,2684.5,3.72505]
[1739640640792,4.98923721,2685.0,2684.5,3.72505]
[1739640641003,4.98923721,2685.0,2684.7,3.7247]
[1739640641396,4.98923721,2685.0,2684.5,3.72506]
[1739640641785,0.04656155,2684.9,2684.1,3.72556]
[1739640641986,3.04656155,2684.9,2684.1,3.72556]
[1739640642298,10.44926,2684.9,2684.1,3.72555]
[1739640642498,6.72462,2684.9,2684.3,3.72536]
[1739640642719,10.44929,2684.9,2684.1,3.72555]
[1739640642886,10.44929,2684.9,2683.9,3.72587]
[1739640642887,1.15886414,2684.8,2684.2,3.72542]
[1739640643483,0.04656813,2684.7,2684.2,3.72542]
[1739640643693,3.77137813,2684.7,2684.0,3.72575]
[1739640643994,1.15886414,2684.8,2684.5,3.72503]
[1739640644194,1.15886414,2684.8,2684.7,3.72481]
[1739640644397,4.98923721,2685.0,2684.7,3.72469]
[1739640644621,4.98923721,2685.0,2684.7,3.72467]
[1739640644807,4.98923721,2685.0,2684.8,3.72465]
[1739640645032,4.98923721,2685.0,2684.7,3.72467]
[1739640645192,4.98923721,2685.0,2684.8,3.72464]
[1739640645386,4.98923721,2684.9,2684.8,3.72464]
[1739640645735,4.98923721,2684.9,2684.7,3.72467]
[1739640646833,4.98923721,2684.9,2684.8,3.72467]
[1739640647369,4.98923721,2684.9,2684.7,3.72467]
[1739640647712,4.98923721,2684.9,2684.8,3.72467]
[1739640648935,4.98923721,2684.9,2684.8,4.469604]
[1739640650218,4.98923721,2685.5,2685.4,3.72384]
[1739640650633,4.98923721,2685.5,2685.3,3.72397]
[1739640650849,4.98923721,2685.5,2685.3,3.72389]
[1739640651332,4.98923721,2685.5,2685.4,3.72384]
[1739640652143,4.98923721,2685.5,2685.3,7.44778]
[1739640652356,4.98923721,2685.5,2685.4,3.72384]
[1739640656050,4.98923721,2685.5,2685.3,3.72388]
[1739640656436,4.98923721,2685.5,2685.4,3.72384]
[1739640657176,4.98923721,2685.5,2685.3,3.7239]
[1739640657380,4.98923721,2685.5,2685.4,3.72384]
[1739640659844,4.98923721,2685.5,2685.3,3.7239]
[1739640660044,4.98923721,2685.5,2684.9,3.72444]
[1739640660045,0.04654815,2685.4,2684.9,3.72444]
[1739640660282,3.72391,2685.4,2684.9,3.72444]
[1739640661264,5.48816093,2685.5,2684.7,3.72481]
[1739640661480,4.98923721,2685.4,2685.2,3.72399]
[1739640663007,5.48816093,2685.4,2685.0,3.7243]
[1739640663180,0.04655263,2685.3,2685.0,3.7243]
[1739640663689,4.98923721,2685.4,2685.3,3.72397]
[1739640664071,4.98923721,2685.4,2685.2,3.7241]
[1739640664663,4.98923721,2685.4,2685.2,3.72404]
[1739640664992,9.21672582,2685.4,2684.8,4.49599]
[1739640665294,0.04655319,2685.3,2684.8,3.72458]
[1739640665471,4.98923721,2685.4,2685.0,3.72432]
[1739640666472,0.04655372,2685.3,2684.9,3.72442]
[1739640666888,0.04655372,2685.3,2685.0,3.72433]
[1739640667673,3.77061372,2685.3,2684.5,9.1304]
[1739640667879,3.77061372,2685.3,2684.8,3.72466]
[1739640667880,4.98923721,2685.2,2684.8,3.72466]
[1739640668080,4.98923721,2685.1,2684.6,3.72481]
[1739640668699,3.7244,2685.0,2684.5,8.359]
[1739640668992,0.04656212,2684.9,2684.5,8.359]
[1739640669200,0.04656212,2684.9,2684.4,3.72516]
[1739640669384,3.72468,2684.8,2684.2,8.22222]
[1739640669567,3.72468,2684.8,2684.3,3.72534]
[1739640669766,3.72468,2684.8,2683.8,8.03564641]
[1739640669767,3.72509,2684.5,2684.0,3.72565]
[1739640669983,4.98923721,2684.4,2684.0,3.72565]
[1739640670191,4.98923721,2684.4,2684.0,7.45134]
[1739640670592,4.98923721,2684.4,2684.3,3.72536]
[1739640670787,4.98923721,2684.4,2684.3,4.49676]
[1739640672705,4.98923721,2684.4,2684.2,3.7255]
[1739640673010,4.98923721,2684.4,2684.0,8.273664]
[1739640673326,4.98923721,2684.4,2684.0,3.72565]
[1739640673620,8.71447721,2684.4,2683.8,7.45194]
[1739640673819,0.04657006,2684.3,2683.7,9.1294]
[1739640673977,4.98923721,2684.2,2683.8,3.72605]
[1739640674370,8.71473721,2684.2,2683.7,8.358]
[1739640675125,0.04657405,2684.1,2683.7,8.358]
[1739640675265,8.71473721,2684.2,2683.7,8.358]
[1739640675472,0.04657407,2684.1,2683.7,8.358]
[1739640675695,8.71473721,2684.2,2683.7,8.358]
[1739640675882,0.04657405,2684.1,2683.7,8.358]
[1739640676082,8.71473721,2684.2,2683.7,8.358]
[1739640676283,8.71473721,2684.2,2683.7,12.08416]
[1739640676490,5.03581127,2684.1,2683.7,8.358]
[1739640676871,4.98923721,2684.1,2683.7,8.358]
[1739640677072,8.71491721,2684.1,2683.7,8.358]
[1739640677372,4.98923721,2684.1,2683.7,8.358]
[1739640677575,3.72587,2684.0,2683.7,8.358]
[1739640678298,4.98923721,2684.1,2683.7,8.358]
[1739640678500,5.77543535,2684.1,2683.7,8.358]
[1739640678707,4.98923721,2684.1,2683.7,8.358]
[1739640679077,8.71496721,2684.1,2683.7,8.358]
[1739640679510,0.04657823,2684.0,2683.7,8.358]
[1739640679686,3.77237823,2684.0,2683.7,8.358]
[1739640679991,0.04657823,2684.0,2683.7,8.358]
[1739640680190,4.98923721,2684.1,2683.7,8.358]
[1739640681311,4.98923721,2684.0,2683.7,8.358]
[1739640682904,0.04657822,2683.9,2683.7,8.358]
[1739640683099,4.98923721,2683.8,2683.7,8.358]
[1739640683304,4.98923721,2683.8,2683.7,12.08419]
[1739640683477,4.98923721,2683.8,2683.7,8.358]
[1739640688326,4.98923721,2683.8,2683.4,3.72652]
[1739640688509,4.98923721,2683.8,2683.2,4.49346]
[1739640688510,8.71540721,2683.8,2683.2,4.49346]
[1739640688995,4.98923721,2683.8,2683.2,4.49342]
[1739640689201,4.98923721,2683.8,2683.4,3.7266]
[1739640689402,8.71529721,2683.8,2683.2,8.22019]
[1739640689799,6.27994334,2683.7,2683.1,3.72703]
[1739640690043,3.72655,2683.5,2682.9,4.53431]
[1739640690191,4.98923721,2683.6,2683.1,3.72702]
[1739640690192,0.04658655,2683.4,2683.1,3.72702]
[1739640690393,8.71564721,2683.6,2683.0,3.72705]
[1739640690594,0.04658648,2683.5,2683.0,3.72705]
[1739640690829,0.04658648,2683.5,2682.9,0.8071]
[1739640690830,4.98923721,2683.4,2682.9,0.8071]
[1739640690990,4.98923721,2683.4,2682.9,4.53434]
[1739640691414,8.71586721,2683.4,2682.8,3.72734]
[1739640691764,4.98923721,2683.4,2682.9,3.72727]
[1739640691947,4.98923721,2683.4,2683.0,3.72713]
[1739640692308,4.98923721,2683.4,2683.2,3.72689]
[1739640693232,4.98923721,2683.4,2683.3,3.72675]
[1739640693608,4.98923721,2683.4,2683.2,7.4537]
[1739640693860,4.98923721,2683.4,2683.2,3.72681]
[1739640694467,4.98923721,2683.4,2683.3,3.72675]
[1739640696923,4.98923721,2683.4,2683.2,7.45362]
[1739640697119,4.98923721,2683.4,2683.2,3.72681]
[1739640698247,4.98923721,2683.4,2682.7,0.8071]
[1739640698441,4.98923721,2683.4,2682.5,9.1691]
[1739640698619,3.72729,2683.0,2682.5,8.362]
[1739640699222,3.72782,2682.6,2682.1,0.005]
[1739640699422,8.71718721,2682.5,2682.1,0.005]